bitfinex/quotes_BTCUSD_20241110
["timestamp","ask_amount","ask_price","bid_price","bid_amount"]
[1731241807998,0.26202235,79294.0,79279.0,0.002]
[1731241808201,0.03,79286.0,79281.0,0.005]
[1731241808411,0.03,79286.0,79285.0,0.005]
[1731241808787,0.03,79286.0,79285.0,0.007]
[1731241809139,0.03,79286.0,79285.0,0.002]
[1731241809295,0.03,79286.0,79282.0,0.0786]
[1731241809296,0.03,79286.0,79283.0,0.002]
[1731241809496,0.03,79286.0,79282.0,0.0806]
[1731241809704,0.03,79286.0,79284.0,0.005]
[1731241809906,0.03,79286.0,79285.0,0.005]
[1731241810095,0.03,79286.0,79285.0,0.007]
[1731241810294,0.03,79286.0,79285.0,0.005]
[1731241810741,0.15594221,79286.0,79285.0,0.005]
[1731241811144,0.17153643,79286.0,79285.0,0.005]
[1731241811374,0.17153643,79286.0,79282.0,0.0806]
[1731241811553,0.17153643,79286.0,79283.0,0.002]
[1731241811554,0.18918254,79284.0,79283.0,0.002]
[1731241811732,0.12594221,79284.0,79274.0,0.0786]
[1731241811936,0.03,79286.0,79274.0,0.0786]
[1731241811937,0.12846456,79283.0,79278.0,0.005]
[1731241812245,0.18918254,79282.0,79281.0,0.005]
[1731241812611,0.12594221,79282.0,79279.0,0.002]
[1731241812779,0.12594221,79281.0,79280.0,0.005]
[1731241813183,0.12594221,79281.0,79278.0,0.005]
[1731241813504,0.03,79286.0,79285.0,0.002]
[1731241813801,0.15594221,79286.0,79285.0,0.002]
[1731241814455,0.15594221,79286.0,79283.0,0.005]
[1731241814662,0.12846456,79285.0,79283.0,0.005]
[1731241814868,0.12594221,79285.0,79283.0,0.005]
[1731241815121,0.19170489,79284.0,79283.0,0.007]
[1731241815333,0.12846456,79284.0,79283.0,0.005]
[1731241816389,0.12594221,79284.0,79283.0,0.005]
[1731241816605,0.12594221,79284.0,79283.0,0.007]
[1731241816823,0.03,79286.0,79285.0,0.002]
[1731241817080,0.03,79286.0,79285.0,0.1322]
[1731241817514,0.01314644,79311.0,79307.0,0.002]
[1731241817734,0.18918254,79315.0,79305.0,0.005]
[1731241817949,0.18918254,79306.0,79305.0,0.005]
[1731241818175,0.12762221,79313.0,79305.0,0.007]
[1731241818394,0.12594221,79312.0,79305.0,0.007]
[1731241818606,0.12594221,79312.0,79310.0,0.002]
[1731241819070,0.00168,79313.0,79310.0,0.007]
[1731241819285,0.00168,79313.0,79312.0,0.0616]
[1731241819495,0.00168,79313.0,79311.0,0.0786]
[1731241819710,0.00168,79313.0,79301.0,0.002]
[1731241819915,0.0046,79317.0,79303.0,0.1]
[1731241820124,0.18918254,79314.0,79303.0,0.22594221]
[1731241820794,0.18918254,79322.0,79303.0,0.22594221]
[1731241820795,0.18918254,79322.0,79304.0,0.12846361]
[1731241821224,0.00168,79337.0,79304.0,0.12846361]
[1731241821225,0.18918254,79348.0,79345.0,0.005]
[1731241821227,0.18918254,79348.0,79343.0,0.005]
[1731241821432,0.005,79346.0,79324.0,0.005]
[1731241821655,0.005,79346.0,79309.0,0.02559122]
[1731241821656,0.005,79339.0,79316.0,0.005]
[1731241821875,0.00252235,79345.0,79312.0,0.005]
[1731241821876,0.005,79330.0,79312.0,0.005]
[1731241822360,0.005,79330.0,79298.0,0.002]
[1731241822361,0.005,79323.0,79301.0,0.005]
[1731241822592,0.005,79323.0,79304.0,0.005]
[1731241825220,0.31512475,79322.0,79304.0,0.01336]
[1731241825363,0.32012475,79322.0,79300.0,0.0786]
[1731241825563,0.005,79330.0,79301.0,0.12846368]
[1731241825765,0.18918254,79321.0,79297.0,0.1]
[1731241826004,0.18918254,79321.0,79297.0,0.22594221]
[1731241826207,0.18918254,79321.0,79298.0,0.05097832]
[1731241826989,0.18918254,79321.0,79297.0,0.22594221]
[1731241827193,0.18918254,79321.0,79295.0,0.0466]
[1731241827194,0.12594221,79320.0,79295.0,0.0466]
[1731241827618,0.18918254,79313.0,79295.0,0.0466]
[1731241828336,0.18918254,79321.0,79295.0,0.0466]
[1731241828337,0.18918254,79321.0,79296.0,0.12594221]
[1731241828632,0.18918254,79313.0,79307.0,0.0772]
[1731241828895,0.18918254,79321.0,79309.0,0.002]
[1731241829096,0.18918254,79321.0,79310.0,0.00251952]
[1731241829246,0.18918254,79320.0,79311.0,0.1]
[1731241829449,0.18918254,79320.0,79313.0,0.1]
[1731241829746,0.18918254,79319.0,79315.0,0.1]
[1731241830003,0.18918254,79348.0,79317.0,0.1]
[1731241830291,0.18918254,79323.0,79319.0,0.1]
[1731241830506,0.18918254,79348.0,79320.0,0.12594221]
[1731241830704,0.18918254,79348.0,79321.0,0.03553087]
[1731241830902,0.18918254,79348.0,79322.0,0.12594221]
[1731241831078,0.18918254,79348.0,79322.0,0.50415221]
[1731241831279,0.18918254,79347.0,79323.0,0.0473]
[1731241831604,0.18918254,79339.0,79326.0,0.0772]
[1731241831858,0.18918254,79339.0,79327.0,0.51859444]
[1731241832030,0.18918254,79339.0,79328.0,0.1]
[1731241832188,0.18918254,79339.0,79330.0,0.1]
[1731241832390,0.18918254,79339.0,79330.0,0.22594221]
[1731241832611,0.18418254,79339.0,79331.0,0.37816]
[1731241832927,0.18418254,79339.0,79332.0,0.05579093]
[1731241833085,0.18918254,79356.0,79333.0,0.12845979]
[1731241833278,0.18918254,79339.0,79333.0,0.50409221]
[1731241833478,0.18918254,79348.0,79333.0,0.37815]
[1731241833700,0.18918254,79348.0,79332.0,0.05579093]
[1731241833902,0.18918254,79348.0,79330.0,0.1]
[1731241834140,0.18918254,79348.0,79330.0,0.22594221]
[1731241834481,0.18918254,79348.0,79332.0,0.1]
[1731241834700,0.18918254,79348.0,79331.0,0.25812]
[1731241834902,0.18918254,79348.0,79327.0,0.01447223]
[1731241834903,0.18918254,79338.0,79327.0,0.01447223]
[1731241835121,0.12594221,79347.0,79323.0,0.0473]
[1731241835539,0.12594221,79347.0,79323.0,0.04793934]
[1731241835540,0.18918254,79340.0,79323.0,0.04793934]
[1731241835776,0.12594221,79339.0,79306.0,0.18918254]
[1731241835975,0.12909306,79339.0,79314.0,0.18918254]
[1731241836123,0.18918254,79332.0,79306.0,0.23684104]
[1731241836368,0.12594221,79331.0,79306.0,0.23684104]
[1731241836587,0.12594221,79331.0,79306.0,0.0476585]
[1731241836767,0.18918254,79324.0,79307.0,0.37822]
[1731241836969,0.18918254,79324.0,79307.0,0.00822]
[1731241837231,0.18918254,79324.0,79299.0,0.002]
[1731241837542,0.18918254,79324.0,79308.0,0.37824]
[1731241837744,0.13918254,79324.0,79305.0,0.002]
[1731241837879,0.13918254,79324.0,79303.0,0.002]
[1731241838110,0.18918254,79339.0,79315.0,0.1]
[1731241838361,0.18918254,79323.0,79317.0,0.1]
[1731241838547,0.18918254,79331.0,79319.0,0.1]
[1731241840150,0.18918254,79331.0,79318.0,0.03031422]
[1731241840356,0.18918254,79331.0,79314.0,0.0473]
[1731241840653,0.18918254,79331.0,79315.0,0.1]
[1731241840858,0.19086254,79331.0,79315.0,0.1]
[1731241841614,0.19086254,79331.0,79314.0,0.09445906]
[1731241842156,0.18918254,79323.0,79314.0,0.09445906]
[1731241842358,0.19086254,79331.0,79315.0,0.1]
[1731241842743,0.19086254,79331.0,79314.0,0.10390497]
[1731241843084,0.18918254,79330.0,79309.0,0.002]
[1731241843293,0.18918254,79330.0,79310.0,0.12594221]
[1731241844165,0.18918254,79329.0,79310.0,0.12594221]
[1731241844768,0.00168,79331.0,79310.0,0.12594221]
[1731241844769,0.00168,79331.0,79322.0,0.002]
[1731241844973,0.18918254,79329.0,79320.0,0.002]
[1731241845176,0.18918254,79329.0,79321.0,0.00251852]
[1731241845469,0.18918254,79329.0,79322.0,0.01304607]
[1731241845674,0.18918254,79329.0,79323.0,0.00251852]
[1731241845842,0.18918254,79329.0,79322.0,0.01304607]
[1731241846752,0.00168,79331.0,79322.0,0.01304607]
[1731241847322,0.18918254,79337.0,79322.0,0.01304607]
[1731241847546,0.18918254,79337.0,79323.0,0.03119196]
[1731241847747,0.18918254,79337.0,79323.0,0.02867382]
[1731241848209,0.03,79330.0,79323.0,0.02867382]
[1731241848984,0.03,79330.0,79329.0,0.002]
[1731241849162,0.03,79330.0,79329.0,0.12794221]
[1731241849347,0.03,79330.0,79329.0,0.25032216]
[1731241851199,0.03,79330.0,79329.0,0.24832216]
[1731241851448,0.03,79330.0,79329.0,0.25032216]
[1731241851713,0.03,79330.0,79329.0,0.29662216]
[1731241852143,0.03,79330.0,79329.0,0.29862216]
[1731241853893,0.03,79330.0,79329.0,0.29662216]
[1731241854066,0.03,79330.0,79329.0,0.67479216]
[1731241854445,0.03,79330.0,79329.0,0.67679216]
[1731241854653,0.03,79330.0,79329.0,0.67479216]
[1731241854854,0.03,79330.0,79329.0,0.67679216]
[1731241855845,0.001678,79337.0,79329.0,0.67679216]
[1731241855846,0.001678,79337.0,79335.0,0.002]
[1731241856065,0.18918254,79336.0,79331.0,0.002]
[1731241856297,0.001678,79337.0,79336.0,0.18895746]
[1731241856496,0.00112844,79337.0,79336.0,0.28895746]
[1731241856873,0.00112844,79337.0,79336.0,0.41489967]
[1731241857863,0.00112844,79337.0,79336.0,0.41689967]
[1731241861041,0.18918254,79348.0,79337.0,0.1]
[1731241861242,0.18918254,79348.0,79339.0,0.1]
[1731241861378,0.18910484,79348.0,79341.0,0.1]
[1731241861585,0.18910484,79348.0,79343.0,0.1]
[1731241861771,0.18910484,79348.0,79344.0,0.12594221]
[1731241861971,0.18918254,79356.0,79344.0,0.12594221]
[1731241862723,0.18918254,79356.0,79345.0,0.56728]
[1731241862887,0.18918254,79356.0,79346.0,0.12594221]
[1731241864297,0.18918254,79364.0,79347.0,0.00251592]
[1731241864528,0.18918254,79364.0,79348.0,0.1]
[1731241864735,0.18918254,79364.0,79349.0,0.56977549]
[1731241864961,0.18918254,79363.0,79352.0,0.002]
[1731241865162,0.18918254,79363.0,79348.0,0.1]
[1731241865163,0.00168,79370.0,79353.0,0.69569778]
[1731241865428,0.001678,79356.0,79353.0,0.69318221]
[1731241865723,0.001678,79356.0,79354.0,0.1]
[1731241865915,0.001678,79356.0,79354.0,0.22594221]
[1731241866112,0.001678,79356.0,79355.0,0.56723]
[1731241868401,0.001678,79356.0,79355.0,0.6148873]
[1731241870914,0.001678,79356.0,79355.0,0.56723]
[1731241871645,0.19418254,79364.0,79355.0,0.56723]
[1731241873304,0.005,79364.0,79355.0,0.56723]
[1731241873460,0.005,79366.0,79355.0,0.56723]
[1731241873659,0.005,79364.0,79355.0,0.56723]
[1731241874384,0.005,79369.0,79355.0,0.56723]
[1731241874588,0.00168,79370.0,79355.0,0.56723]
[1731241874786,0.00668,79370.0,79356.0,0.00251516]
[1731241875008,0.005,79366.0,79356.0,0.00251516]
[1731241875175,0.005,79366.0,79357.0,0.56722]
[1731241875377,0.005,79367.0,79357.0,0.56722]
[1731241875580,0.005,79366.0,79357.0,0.56722]
[1731241876324,0.18918254,79358.0,79357.0,0.00722]
[1731241876478,0.005,79352.0,79332.0,0.18918254]
[1731241876822,0.005,79348.0,79340.0,0.18918254]
[1731241877021,0.005,79348.0,79327.0,0.04735449]
[1731241877022,0.005,79344.0,79314.0,0.18918254]
[1731241877384,0.005,79328.0,79320.0,0.046498]
[1731241877607,0.005,79328.0,79308.0,0.18918254]
[1731241877608,0.5,79324.0,79308.0,0.18918254]
[1731241877809,0.21034221,79324.0,79308.0,0.18918254]
[1731241879334,0.0844,79324.0,79309.0,0.00251996]
[1731241880492,0.0844,79324.0,79308.0,0.18918254]
[1731241881373,0.0844,79324.0,79310.0,0.04713085]
[1731241884729,0.005,79331.0,79310.0,0.04713085]
[1731241885021,0.26628254,79334.0,79311.0,0.00251886]
[1731241885250,0.18918254,79333.0,79311.0,0.00251886]
[1731241885402,0.18918254,79333.0,79310.0,0.04713085]
[1731241886503,0.18918254,79333.0,79309.0,0.1]
[1731241886504,0.0771,79334.0,79309.0,0.1]
[1731241887266,0.18918254,79333.0,79309.0,0.1]
[1731241887458,0.18918254,79333.0,79321.0,0.04785144]
[1731241887659,0.0771,79334.0,79321.0,0.04785144]
[1731241888004,0.0512,79339.0,79321.0,0.04785144]
[1731241888204,0.0771,79342.0,79324.0,0.12846044]
[1731241888406,0.18918254,79343.0,79324.0,0.12846044]
[1731241888622,0.18918254,79343.0,79324.0,0.20696044]
[1731241888821,0.18918254,79343.0,79324.0,0.20444221]
[1731241889054,0.19418254,79343.0,79324.0,0.20444221]
[1731241889863,0.18918254,79343.0,79324.0,0.20444221]
[1731241890043,0.19418254,79343.0,79324.0,0.20444221]
[1731241890246,0.18918254,79343.0,79324.0,0.20444221]
[1731241891066,0.19418254,79343.0,79324.0,0.20444221]
[1731241891810,0.18918254,79343.0,79324.0,0.20444221]
[1731241892014,0.005,79342.0,79324.0,0.20444221]
[1731241892449,0.18918254,79343.0,79324.0,0.20444221]
[1731241892648,0.005,79342.0,79324.0,0.20444221]
[1731241894055,0.005,79342.0,79325.0,0.37815]
[1731241894264,0.005,79342.0,79326.0,0.12594221]
[1731241894466,0.18918254,79343.0,79327.0,0.37818]
[1731241894669,0.005,79342.0,79328.0,0.12594221]
[1731241894876,0.005,79342.0,79329.0,0.37817]
[1731241895336,0.18918254,79343.0,79329.0,0.37817]
[1731241896648,0.001002,79345.0,79329.0,0.37817]
[1731241896649,0.18918254,79347.0,79344.0,0.1]
[1731241896800,0.18918254,79346.0,79344.0,0.1]
[1731241897003,0.18918254,79346.0,79343.0,0.1265]
[1731241897004,0.18918254,79355.0,79346.0,0.1]
[1731241897201,0.18918254,79355.0,79348.0,0.1]
[1731241897571,0.18918254,79355.0,79350.0,0.1]
[1731241897779,0.18918254,79368.0,79351.0,0.12594221]
[1731241897966,0.18918254,79368.0,79352.0,0.1]
[1731241897967,0.18918254,79358.0,79352.0,0.1]
[1731241898261,0.18918254,79368.0,79354.0,0.1]
[1731241898472,0.18918254,79368.0,79355.0,0.12594221]
[1731241898867,0.18918254,79368.0,79355.0,0.50399221]
[1731241900999,0.18918254,79368.0,79355.0,0.55040156]
[1731241901746,0.00168,79370.0,79356.0,0.19169765]
[1731241901933,0.00168,79370.0,79358.0,0.102]
[1731241902284,0.00168,79370.0,79362.0,0.1]
[1731241902506,0.00168,79370.0,79363.0,0.12594221]
[1731241902707,0.00168,79370.0,79363.0,0.60395221]
[1731241905531,0.00168,79370.0,79363.0,0.67965221]
[1731241905738,0.00168,79370.0,79363.0,0.72669219]
[1731241906887,0.00168,79370.0,79363.0,0.72869219]
[1731241909276,0.00168,79370.0,79363.0,0.72669219]
[1731241909899,0.00168,79370.0,79363.0,0.62669219]
[1731241911366,0.00168,79370.0,79363.0,0.72669219]
[1731241911972,0.00168,79371.0,79364.0,0.1]
[1731241912137,0.00168,79371.0,79366.0,0.1]
[1731241912318,0.00168,79371.0,79368.0,0.102]
[1731241912520,0.00168,79371.0,79370.0,0.1]
[1731241912720,0.00168,79371.0,79370.0,0.60392221]
[1731241913991,0.00168,79371.0,79370.0,0.60592221]
[1731241915350,0.00168,79371.0,79370.0,0.60392221]
[1731241915547,0.00168,79371.0,79370.0,0.60592221]
[1731241916399,0.00168,79371.0,79370.0,0.60392221]
[1731241922482,0.0472,79383.0,79371.0,0.1]
[1731241922693,0.18989654,79393.0,79370.0,0.50392221]
[1731241922694,0.18918254,79382.0,79373.0,0.1]
[1731241922891,0.18989654,79393.0,79374.0,0.12594221]
[1731241923088,0.18989654,79393.0,79377.0,0.102]
[1731241923385,0.18989654,79393.0,79379.0,0.1]
[1731241923586,0.18989654,79393.0,79378.0,0.50388221]
[1731241923587,0.18989654,79393.0,79381.0,0.1]
[1731241923788,0.18989654,79393.0,79383.0,0.1]
[1731241924086,0.18989654,79393.0,79385.0,0.1]
[1731241924285,0.18989654,79393.0,79387.0,0.1]
[1731241924445,0.18989654,79393.0,79387.0,0.22594221]
[1731241925004,0.18989654,79393.0,79387.0,0.60384221]
[1731241925230,0.000714,79393.0,79387.0,0.60384221]
[1731241928469,0.000714,79393.0,79387.0,0.65052697]
[1731241931608,0.005,79391.0,79374.0,0.005034]
[1731241931890,0.005,79384.0,79371.0,0.23623351]
[1731241932160,0.005,79381.0,79372.0,0.12594221]
[1731241932507,0.005,79381.0,79362.0,0.18918254]
[1731241932716,0.005,79381.0,79363.0,0.50391221]
[1731241933333,0.005,79383.0,79363.0,0.50391221]
[1731241933538,0.18918254,79386.0,79363.0,0.50391221]
[1731241933539,0.005,79381.0,79364.0,0.1]
[1731241933755,0.18918254,79376.0,79366.0,0.1]
[1731241933973,0.005,79381.0,79367.0,0.12594221]
[1731241934821,0.0824,79377.0,79367.0,0.12594221]
[1731241935587,0.0824,79377.0,79371.0,0.000839]
[1731241940153,0.03,79373.0,79371.0,0.000839]
[1731241940845,0.03,79373.0,79372.0,0.37797]
[1731241941244,0.03,79373.0,79372.0,0.50391221]
[1731241942756,0.03,79373.0,79372.0,0.37797]
[1731241943408,0.158,79373.0,79372.0,0.37797]
[1731241943612,0.158,79373.0,79371.0,0.000839]
[1731241943613,0.505,79372.0,79371.0,0.000839]
[1731241943814,0.005,79372.0,79371.0,0.000839]
[1731241944042,0.13094221,79372.0,79371.0,0.000839]
[1731241944273,0.21689186,79372.0,79371.0,0.000839]
[1731241944478,0.21489186,79372.0,79371.0,0.000839]
[1731241944686,0.21389162,79372.0,79371.0,0.000839]
[1731241946520,0.21589162,79372.0,79371.0,0.000839]
[1731241946883,0.22089162,79372.0,79371.0,0.000839]
[1731241947253,0.26681174,79372.0,79371.0,0.000839]
[1731241948400,0.27381174,79372.0,79371.0,0.000839]
[1731241948605,0.27181174,79372.0,79371.0,0.000839]
[1731241949130,0.26681174,79372.0,79371.0,0.000839]
[1731241949335,0.27181174,79372.0,79371.0,0.000839]
[1731241949549,0.26681174,79372.0,79371.0,0.000839]
[1731241949761,0.27381174,79372.0,79371.0,0.000839]
[1731241950207,0.27181174,79372.0,79371.0,0.000839]
[1731241952161,0.02099976,79368.0,79367.0,0.000839]
[1731241952390,0.63259245,79368.0,79367.0,0.000839]
[1731241952619,0.62944197,79368.0,79367.0,0.000839]
[1731241953502,0.62744197,79368.0,79367.0,0.000839]
[1731241953669,0.00399976,79356.0,79355.0,0.18918254]
[1731241953870,0.00399976,79356.0,79346.0,0.19002154]
[1731241953871,0.00399976,79347.0,79346.0,0.19002154]
[1731241954074,0.00399976,79347.0,79338.0,0.18918254]
[1731241954256,0.00399976,79338.0,79328.0,0.04862584]
[1731241954600,0.005,79349.0,79323.0,0.005878]
[1731241954601,0.00399976,79337.0,79323.0,0.005878]
[1731241954829,0.00399976,79337.0,79323.0,0.000839]
[1731241955117,0.00399976,79339.0,79323.0,0.000839]
[1731241955262,0.00399976,79337.0,79324.0,0.04803243]
[1731241955467,0.00399976,79337.0,79324.0,0.000839]
[1731241955709,0.18918254,79332.0,79324.0,0.000839]
[1731241955924,0.07979976,79337.0,79324.0,0.000839]
[1731241956254,0.0758,79337.0,79324.0,0.000839]
[1731241956462,0.07979976,79337.0,79324.0,0.000839]
[1731241956863,0.00399976,79333.0,79324.0,0.000839]
[1731241957306,0.00399976,79334.0,79324.0,0.000839]
[1731241957582,0.00399976,79333.0,79324.0,0.000839]
[1731241957764,0.18918254,79331.0,79324.0,0.000839]
[1731241958009,0.00399976,79333.0,79324.0,0.000839]
[1731241959758,0.0758,79337.0,79324.0,0.000839]
[1731241959759,0.00399976,79325.0,79324.0,0.000839]
[1731241962205,0.12994197,79325.0,79324.0,0.000839]
[1731241962367,0.21389368,79325.0,79324.0,0.000839]
[1731241962571,0.18149975,79325.0,79324.0,0.000839]
[1731241962771,0.17834804,79325.0,79324.0,0.000839]
[1731241963846,0.03,79326.0,79324.0,0.000839]
[1731241969584,0.1340935,79325.0,79324.0,0.000839]
[1731241969789,0.2560935,79325.0,79324.0,0.000839]
[1731241971691,0.2660935,79325.0,79324.0,0.000839]
[1731241974036,0.31470231,79325.0,79324.0,0.000839]
[1731241974236,0.31155102,79325.0,79324.0,0.000839]
[1731241975883,0.30655102,79325.0,79324.0,0.000839]
[1731241976458,0.30155102,79325.0,79324.0,0.000839]
[1731241976667,0.30655102,79325.0,79324.0,0.000839]
[1731241976873,0.122,79325.0,79324.0,0.000839]
[1731241977081,0.0761,79325.0,79324.0,0.000839]
[1731241977609,0.0811,79325.0,79324.0,0.000839]
[1731241978780,0.0761,79325.0,79324.0,0.000839]
[1731241978960,0.0811,79325.0,79324.0,0.000839]
[1731241979363,0.0761,79325.0,79324.0,0.000839]
[1731241980610,0.20704221,79325.0,79324.0,0.000839]
[1731241980813,0.21019374,79325.0,79324.0,0.000839]
[1731241981031,0.21519374,79325.0,79324.0,0.000839]
[1731241981820,0.22019374,79325.0,79324.0,0.000839]
[1731241985779,0.01,79325.0,79324.0,0.000839]
[1731241986022,0.005,79325.0,79324.0,0.000839]
[1731241986431,0.031678,79326.0,79324.0,0.00335884]
[1731241986671,0.031678,79326.0,79325.0,0.08281849]
[1731241986878,0.031678,79326.0,79325.0,0.3087607]
[1731241987082,0.031678,79326.0,79325.0,0.30824221]
[1731241987350,0.031678,79326.0,79325.0,0.35384221]
[1731241989303,0.031678,79326.0,79324.0,0.000839]
[1731241993490,0.031678,79326.0,79325.0,0.12846119]
[1731241993702,0.031678,79326.0,79325.0,0.12594221]
[1731241997825,0.01230223,79326.0,79325.0,0.2354607]
[1731241998054,0.01230223,79326.0,79325.0,0.3157607]
[1731241998248,0.01230223,79326.0,79325.0,0.30624221]
[1731241998572,0.01230223,79326.0,79325.0,0.31124221]
[1731241998837,0.001678,79326.0,79325.0,0.31124221]
[1731241998946,0.001678,79326.0,79325.0,0.30624221]
[1731241999153,0.001678,79326.0,79325.0,0.30824221]
[1731241999352,0.001678,79326.0,79325.0,0.30908121]
[1731241999804,0.001678,79326.0,79325.0,0.30708121]
[1731242000206,0.001678,79326.0,79325.0,0.22678121]
[1731242007208,0.18889054,79338.0,79326.0,0.1]
[1731242007492,0.18889054,79338.0,79326.0,0.22594221]
[1731242008423,0.005,79326.0,79325.0,0.000839]
[1731242008628,0.26484221,79326.0,79325.0,0.000839]
[1731242008839,0.25484221,79326.0,79325.0,0.000839]
[1731242009014,0.0795,79334.0,79325.0,0.000839]
[1731242009213,0.18918254,79333.0,79325.0,0.000839]
[1731242009764,0.0795,79334.0,79325.0,0.000839]
[1731242009765,0.0795,79334.0,79326.0,0.00251899]
[1731242009985,0.0795,79334.0,79325.0,0.000839]
[1731242009986,0.18918254,79332.0,79325.0,0.000839]
[1731242010185,0.0795,79334.0,79325.0,0.000839]
[1731242010537,0.0795,79334.0,79326.0,0.00251855]
[1731242010947,0.005,79345.0,79326.0,0.00251855]
[1731242010948,0.0845,79345.0,79326.0,0.12594221]
[1731242011177,0.18918254,79336.0,79326.0,0.12594221]
[1731242011350,0.0795,79345.0,79327.0,0.12594221]
[1731242011552,0.18918254,79338.0,79327.0,0.12594221]
[1731242011772,0.001678,79333.0,79327.0,0.12594221]
[1731242012364,0.001678,79333.0,79325.0,0.000839]
[1731242012584,0.001678,79333.0,79326.0,0.12594221]
[1731242014981,0.03,79328.0,79326.0,0.12594221]
[1731242018897,0.03,79328.0,79327.0,0.00251836]
[1731242019104,0.03,79328.0,79327.0,0.12594221]
[1731242019305,0.03,79328.0,79327.0,0.20584221]
[1731242019946,0.03,79328.0,79327.0,0.30584221]
[1731242028892,0.03,79328.0,79327.0,0.36144221]
[1731242030223,0.03,79328.0,79327.0,0.35944221]
[1731242032225,0.03,79328.0,79327.0,0.36144221]
[1731242032660,0.001678,79333.0,79332.0,0.007]
[1731242032885,0.001678,79333.0,79332.0,0.20834221]
[1731242033102,0.001678,79333.0,79332.0,0.30834221]
[1731242034963,0.001678,79333.0,79332.0,0.30634221]
[1731242035157,0.001678,79333.0,79332.0,0.30834221]
[1731242035359,0.001678,79333.0,79332.0,0.30634221]
[1731242035562,0.001678,79333.0,79332.0,0.30834221]
[1731242036536,0.001678,79333.0,79332.0,0.30334221]
[1731242036946,0.001678,79333.0,79332.0,0.30834221]
[1731242037100,0.001678,79333.0,79332.0,0.31834221]
[1731242040461,0.0477,79369.0,79332.0,0.31834221]
[1731242040462,0.18020293,79346.0,79345.0,0.005]
[1731242040712,0.18020293,79346.0,79345.0,0.23294221]
[1731242040881,0.18020293,79346.0,79345.0,0.23094221]
[1731242041190,0.0477,79369.0,79345.0,0.23094221]
[1731242041191,0.0477,79369.0,79351.0,0.005]
[1731242041439,0.0477,79369.0,79353.0,0.105]
[1731242041641,0.0477,79369.0,79353.0,0.23094221]
[1731242041763,0.18918254,79358.0,79355.0,0.1]
[1731242041964,0.0477,79369.0,79357.0,0.1]
[1731242042166,0.0477,79369.0,79359.0,0.1]
[1731242042372,0.0477,79369.0,79360.0,0.12594221]
[1731242043816,0.0477,79369.0,79360.0,0.17410251]
[1731242044244,0.0775,79371.0,79360.0,0.17410251]
[1731242045349,0.001678,79372.0,79361.0,0.10251516]
[1731242045549,0.001678,79372.0,79362.0,0.12594221]
[1731242045550,0.18918254,79368.0,79362.0,0.12594221]
[1731242045948,0.18918254,79367.0,79362.0,0.12594221]
[1731242046171,0.0759,79371.0,79361.0,0.1]
[1731242046398,0.18918254,79369.0,79362.0,0.1]
[1731242046632,0.18918254,79369.0,79361.0,0.12594221]
[1731242047253,0.001678,79369.0,79361.0,0.12594221]
[1731242047700,0.001678,79369.0,79363.0,0.005]
[1731242049183,0.001678,79369.0,79364.0,0.12845716]
[1731242049369,0.001678,79369.0,79365.0,0.1]
[1731242049570,0.001678,79369.0,79367.0,0.1]
[1731242049778,0.001678,79369.0,79368.0,0.12594221]
[1731242055765,0.001678,79369.0,79368.0,0.13594221]
[1731242057794,0.001678,79369.0,79368.0,0.01]
[1731242063612,0.000678,79369.0,79368.0,0.01]
[1731242066363,0.000678,79369.0,79368.0,0.13594221]
[1731242066521,0.000678,79369.0,79368.0,0.13845689]
[1731242068567,0.000678,79369.0,79368.0,0.13594221]
[1731242071090,0.18918254,79376.0,79368.0,0.13594221]
[1731242071293,0.16743854,79385.0,79368.0,0.13594221]
[1731242071294,0.16743854,79385.0,79369.0,0.12594221]
[1731242074271,0.0769,79384.0,79369.0,0.12594221]
[1731242077416,0.1232,79371.0,79368.0,0.01]
[1731242077690,0.1232,79371.0,79359.0,0.18918254]
[1731242077891,0.035,79377.0,79360.0,0.12845785]
[1731242077892,0.03,79377.0,79360.0,0.12845785]
[1731242078120,0.18918254,79374.0,79360.0,0.12845785]
[1731242078297,0.03,79377.0,79361.0,0.00251512]
[1731242078496,0.18918254,79374.0,79362.0,0.12594221]
[1731242078696,0.18918254,79374.0,79362.0,0.12794221]
[1731242079865,0.18918254,79374.0,79362.0,0.12594221]
[1731242080492,0.03,79377.0,79362.0,0.12594221]
[1731242080493,0.03,79377.0,79363.0,0.00251481]
[1731242080702,0.18918254,79374.0,79364.0,0.12594221]
[1731242081109,0.18918254,79382.0,79364.0,0.12594221]
[1731242082992,0.18918254,79374.0,79354.0,0.1]
[1731242083212,0.0769,79369.0,79355.0,0.31512475]
[1731242083404,0.00314982,79368.0,79346.0,0.000839]
[1731242083580,0.0769,79369.0,79352.0,0.18918254]
[1731242083938,0.18918254,79366.0,79347.0,0.12594221]
[1731242084141,0.18918254,79366.0,79348.0,0.00251618]
[1731242084349,0.18918254,79366.0,79364.0,0.000839]
[1731242084901,0.0769,79369.0,79364.0,0.000839]
[1731242085102,0.19233254,79368.0,79364.0,0.000839]
[1731242085315,0.13,79365.0,79364.0,0.000839]
[1731242085518,0.13315033,79365.0,79364.0,0.000839]
[1731242086416,0.13315033,79365.0,79364.0,0.010839]
[1731242086618,0.13315033,79365.0,79350.0,0.18918254]
[1731242086619,0.12565033,79365.0,79350.0,0.18918254]
[1731242086836,0.1225,79365.0,79350.0,0.31512475]
[1731242087195,0.1225,79365.0,79350.0,0.12594221]
[1731242087630,0.18918254,79364.0,79358.0,0.01]
[1731242088022,0.1225,79365.0,79358.0,0.01]
[1731242090005,0.18918254,79364.0,79358.0,0.01]
[1731242090327,0.1225,79365.0,79358.0,0.01]
[1731242096317,0.04834903,79369.0,79358.0,0.01]
[1731242096519,0.00315002,79373.0,79358.0,0.01]
[1731242096715,0.00815002,79373.0,79358.0,0.01]
[1731242096973,0.00315002,79373.0,79358.0,0.010839]
[1731242097296,0.001678,79365.0,79358.0,0.010839]
[1731242097546,0.001678,79365.0,79359.0,0.00251629]